[Event "Titled Tuesday Blitz August 16 Early 2022"]
[White "Orlov, Georgi"]
[Black "Gheorghiu, Calin"]
[WhiteFideId "2011271"]
[BlackFideId "1200305"]
[WhiteElo "2461"]
[BlackElo "2168"]
[Result "0-1"]
[Round "05"]
[TimeControl "180+2"]
[Date "2022.08.18"]
[WhiteClock "0:00:00"]
[BlackClock "0:00:00"]

1. d4 {[%clk 0:00:00]}  Nf6 {[%clk 0:00:00]} 2. Nf3 {[%clk 0:00:00]}  d5 {[%clk 0:00:00]} 3. c4 {[%clk 0:00:00]}  e6 {[%clk 0:00:00]} 4. g3 {[%clk 0:00:00]}  Bb4+ {[%clk 0:00:00]} 5. Bd2 {[%clk 0:00:00]}  Bd6 {[%clk 0:00:00]} 6. Bg2 {[%clk 0:00:00]}  c6 {[%clk 0:00:00]} 7. Qc2 {[%clk 0:00:00]}  Ne4 {[%clk 0:00:00]} 8. O-O {[%clk 0:00:00]}  O-O {[%clk 0:00:00]} 9. Nc3 {[%clk 0:00:00]}  f5 {[%clk 0:00:00]} 10. c5 {[%clk 0:00:00]}  Be7 {[%clk 0:00:00]} 11. b4 {[%clk 0:00:00]}  Nd7 {[%clk 0:00:00]} 12. a4 {[%clk 0:00:00]}  Bf6 {[%clk 0:00:00]} 13. Rad1 {[%clk 0:00:00]}  g5 {[%clk 0:00:00]} 14. e3 {[%clk 0:00:00]}  g4 {[%clk 0:00:00]} 15. Ne1 {[%clk 0:00:00]}  e5 {[%clk 0:00:00]} 16. Bc1 {[%clk 0:00:00]}  Qe7 {[%clk 0:00:00]} 17. Ne2 {[%clk 0:00:00]}  b6 {[%clk 0:00:00]} 18. Nd3 {[%clk 0:00:00]}  Ba6 {[%clk 0:00:00]} 19. Ba3 {[%clk 0:00:00]}  bxc5 {[%clk 0:00:00]} 20. Bxe4 {[%clk 0:00:00]}  fxe4 {[%clk 0:00:00]} 21. Nxc5 {[%clk 0:00:00]}  Nxc5 {[%clk 0:00:00]} 22. bxc5 {[%clk 0:00:00]}  Bd3 {[%clk 0:00:00]} 23. Rxd3 {[%clk 0:00:00]}  exd3 {[%clk 0:00:00]} 24. Qxd3 {[%clk 0:00:00]}  Rab8 {[%clk 0:00:00]} 25. Qf5 {[%clk 0:00:00]}  Qg7 {[%clk 0:00:00]} 26. Qe6+ {[%clk 0:00:00]}  Kh8 {[%clk 0:00:00]} 27. dxe5 {[%clk 0:00:00]}  Bxe5 {[%clk 0:00:00]} 28. Qxc6 {[%clk 0:00:00]}  Rb3 {[%clk 0:00:00]} 29. Bc1 {[%clk 0:00:00]}  Qf7 {[%clk 0:00:00]} 30. Qa6 {[%clk 0:00:00]}  Qf3 {[%clk 0:00:00]} 31. Nf4 {[%clk 0:00:00]}  Rb1 {[%clk 0:00:00]} 32. Qe6 {[%clk 0:00:00]}  Bxf4 {[%clk 0:00:00]} 33. exf4 {[%clk 0:00:00]}  Qe4 {[%clk 0:00:00]} 34. Qd6 {[%clk 0:00:00]}  Rc8 {[%clk 0:00:00]} 35. c6 {[%clk 0:00:00]}  Qc4 {[%clk 0:00:00]} 36. Be3 {[%clk 0:00:00]}  Qxf1# {[%clk 0:00:00]} 0-1


[Site "https://www.chess.com"]

[Event "Titled Tuesday Blitz August 16 Early 2022"]
[White "Papayan, Oleg"]
[Black "Sourath Biswas"]
[WhiteFideId "4193911"]
[BlackFideId "35091484"]
[WhiteElo "2038"]
[BlackElo "1777"]
[Result "1-0"]
[Round "05"]
[TimeControl "180+2"]
[Date "2022.08.18"]
[WhiteClock "0:00:00"]
[BlackClock "0:00:00"]

1. e4 {[%clk 0:00:00]}  c6 {[%clk 0:00:00]} 2. d4 {[%clk 0:00:00]}  d5 {[%clk 0:00:00]} 3. e5 {[%clk 0:00:00]}  Bf5 {[%clk 0:00:00]} 4. h4 {[%clk 0:00:00]}  h5 {[%clk 0:00:00]} 5. Bg5 {[%clk 0:00:00]}  Qb6 {[%clk 0:00:00]} 6. Bd3 {[%clk 0:00:00]}  Bxd3 {[%clk 0:00:00]} 7. Qxd3 {[%clk 0:00:00]}  e6 {[%clk 0:00:00]} 8. Nd2 {[%clk 0:00:00]}  Nh6 {[%clk 0:00:00]} 9. Ngf3 {[%clk 0:00:00]}  Nf5 {[%clk 0:00:00]} 10. O-O {[%clk 0:00:00]}  Nd7 {[%clk 0:00:00]} 11. c4 {[%clk 0:00:00]}  Qa6 {[%clk 0:00:00]} 12. Rfc1 {[%clk 0:00:00]}  Bb4 {[%clk 0:00:00]} 13. a3 {[%clk 0:00:00]}  Bxd2 {[%clk 0:00:00]} 14. Nxd2 {[%clk 0:00:00]}  c5 {[%clk 0:00:00]} 15. dxc5 {[%clk 0:00:00]}  Nxe5 {[%clk 0:00:00]} 16. Qe2 {[%clk 0:00:00]}  Nc6 {[%clk 0:00:00]} 17. b4 {[%clk 0:00:00]}  dxc4 {[%clk 0:00:00]} 18. Nxc4 {[%clk 0:00:00]}  O-O {[%clk 0:00:00]} 19. Qxh5 {[%clk 0:00:00]}  Ncd4 {[%clk 0:00:00]} 20. Rc3 {[%clk 0:00:00]}  Qc6 {[%clk 0:00:00]} 21. Qg4 {[%clk 0:00:00]}  Qd5 {[%clk 0:00:00]} 22. Bf6 {[%clk 0:00:00]}  Kh7 {[%clk 0:00:00]} 23. Rg3 {[%clk 0:00:00]}  gxf6 {[%clk 0:00:00]} 24. Ne3 {[%clk 0:00:00]}  Nxg3 {[%clk 0:00:00]} 25. Nxd5 {[%clk 0:00:00]}  Nge2+ {[%clk 0:00:00]} 26. Kf1 {[%clk 0:00:00]}  exd5 {[%clk 0:00:00]} 27. Rd1 {[%clk 0:00:00]}  Rad8 {[%clk 0:00:00]} 28. Rxd4 {[%clk 0:00:00]}  Nxd4 {[%clk 0:00:00]} 29. Qxd4 {[%clk 0:00:00]}  Kg7 {[%clk 0:00:00]} 30. g4 {[%clk 0:00:00]}  Rfe8 {[%clk 0:00:00]} 31. g5 {[%clk 0:00:00]}  Re6 {[%clk 0:00:00]} 32. h5 {[%clk 0:00:00]}  Kh7 {[%clk 0:00:00]} 33. Qd3+ {[%clk 0:00:00]}  Kg8 {[%clk 0:00:00]} 34. f4 {[%clk 0:00:00]}  Re4 {[%clk 0:00:00]} 35. gxf6 {[%clk 0:00:00]}  Rxf4+ {[%clk 0:00:00]} 36. Ke2 {[%clk 0:00:00]}  Rxf6 {[%clk 0:00:00]} 37. Qg3+ {[%clk 0:00:00]}  Kf8 {[%clk 0:00:00]} 38. Qc7 {[%clk 0:00:00]}  Re6+ {[%clk 0:00:00]} 39. Kd3 {[%clk 0:00:00]}  Ke8 {[%clk 0:00:00]} 40. Qxb7 {[%clk 0:00:00]}  d4 {[%clk 0:00:00]} 41. c6 {[%clk 0:00:00]}  Re3+ {[%clk 0:00:00]} 42. Kd2 {[%clk 0:00:00]}  Rc3 {[%clk 0:00:00]} 43. b5 {[%clk 0:00:00]}  Rc5 {[%clk 0:00:00]} 44. c7 {[%clk 0:00:00]}  Rd7 {[%clk 0:00:00]} 45. c8=Q+ {[%clk 0:00:00]}  Rxc8 {[%clk 0:00:00]} 46. Qxc8+ {[%clk 0:00:00]}  Ke7 {[%clk 0:00:00]} 47. Qc6 {[%clk 0:00:00]}  d3 {[%clk 0:00:00]} 48. Qxd7+ {[%clk 0:00:00]}  Kxd7 {[%clk 0:00:00]} 49. h6 {[%clk 0:00:00]}  Ke6 {[%clk 0:00:00]} 50. h7 {[%clk 0:00:00]}  Kf6 {[%clk 0:00:00]} 51. h8=Q+ {[%clk 0:00:00]}  Kf5 {[%clk 0:00:00]} 52. Qd4 {[%clk 0:00:00]}  Ke6 {[%clk 0:00:00]} 53. Qxd3 {[%clk 0:00:00]}  f5 {[%clk 0:00:00]} 54. Qf3 {[%clk 0:00:00]} 1-0


[Site "https://www.chess.com"]

[Event "Titled Tuesday Blitz August 16 Early 2022"]
[White "Pastar, Slaven"]
[Black "Gomez Ledo, Roberto Carlos"]
[WhiteFideId "14402718"]
[BlackFideId "3507076"]
[WhiteElo "2248"]
[BlackElo "2379"]
[Result "1/2-1/2"]
[Round "05"]
[TimeControl "180+2"]
[Date "2022.08.18"]
[WhiteClock "0:00:00"]
[BlackClock "0:00:00"]

1. b3 {[%clk 0:00:00]}  d5 {[%clk 0:00:00]} 2. Bb2 {[%clk 0:00:00]}  Bf5 {[%clk 0:00:00]} 3. Nf3 {[%clk 0:00:00]}  e6 {[%clk 0:00:00]} 4. g3 {[%clk 0:00:00]}  a5 {[%clk 0:00:00]} 5. Bg2 {[%clk 0:00:00]}  h6 {[%clk 0:00:00]} 6. O-O {[%clk 0:00:00]}  Nf6 {[%clk 0:00:00]} 7. c4 {[%clk 0:00:00]}  c6 {[%clk 0:00:00]} 8. d3 {[%clk 0:00:00]}  Be7 {[%clk 0:00:00]} 9. Re1 {[%clk 0:00:00]}  O-O {[%clk 0:00:00]} 10. Nbd2 {[%clk 0:00:00]}  Bh7 {[%clk 0:00:00]} 11. Qc2 {[%clk 0:00:00]}  Nbd7 {[%clk 0:00:00]} 12. a3 {[%clk 0:00:00]}  Re8 {[%clk 0:00:00]} 13. Bc3 {[%clk 0:00:00]}  Qb6 {[%clk 0:00:00]} 14. Qb2 {[%clk 0:00:00]}  c5 {[%clk 0:00:00]} 15. cxd5 {[%clk 0:00:00]}  exd5 {[%clk 0:00:00]} 16. d4 {[%clk 0:00:00]}  Bf8 {[%clk 0:00:00]} 17. dxc5 {[%clk 0:00:00]}  Bxc5 {[%clk 0:00:00]} 18. Bd4 {[%clk 0:00:00]}  Rac8 {[%clk 0:00:00]} 19. e3 {[%clk 0:00:00]}  Bxd4 {[%clk 0:00:00]} 20. Qxd4 {[%clk 0:00:00]}  Qc7 {[%clk 0:00:00]} 21. b4 {[%clk 0:00:00]}  a4 {[%clk 0:00:00]} 22. Bf1 {[%clk 0:00:00]}  Nb6 {[%clk 0:00:00]} 23. Bb5 {[%clk 0:00:00]}  Red8 {[%clk 0:00:00]} 24. Rac1 {[%clk 0:00:00]}  Qd6 {[%clk 0:00:00]} 25. Rc5 {[%clk 0:00:00]}  Ne4 {[%clk 0:00:00]} 26. Nxe4 {[%clk 0:00:00]}  Bxe4 {[%clk 0:00:00]} 27. Nd2 {[%clk 0:00:00]}  Qg6 {[%clk 0:00:00]} 28. Rec1 {[%clk 0:00:00]}  Bf5 {[%clk 0:00:00]} 29. Nf3 {[%clk 0:00:00]}  Ra8 {[%clk 0:00:00]} 30. Nh4 {[%clk 0:00:00]}  Qe6 {[%clk 0:00:00]} 31. Nxf5 {[%clk 0:00:00]}  Qxf5 {[%clk 0:00:00]} 32. Rc7 {[%clk 0:00:00]}  Nc4 {[%clk 0:00:00]} 33. Bxc4 {[%clk 0:00:00]}  dxc4 {[%clk 0:00:00]} 34. Qxc4 {[%clk 0:00:00]}  b5 {[%clk 0:00:00]} 35. Qc2 {[%clk 0:00:00]}  Rd3 {[%clk 0:00:00]} 36. Rc3 {[%clk 0:00:00]}  Rad8 {[%clk 0:00:00]} 37. Rxd3 {[%clk 0:00:00]}  Qxd3 {[%clk 0:00:00]} 38. Qxd3 {[%clk 0:00:00]}  Rxd3 {[%clk 0:00:00]} 39. Rc5 {[%clk 0:00:00]}  Rxa3 {[%clk 0:00:00]} 40. Rxb5 {[%clk 0:00:00]}  Rb3 {[%clk 0:00:00]} 41. Kg2 {[%clk 0:00:00]}  g6 {[%clk 0:00:00]} 42. Rb7 {[%clk 0:00:00]}  h5 {[%clk 0:00:00]} 43. h4 {[%clk 0:00:00]}  a3 {[%clk 0:00:00]} 44. Kf3 {[%clk 0:00:00]}  a2 {[%clk 0:00:00]} 45. Ra7 {[%clk 0:00:00]}  Rb2 {[%clk 0:00:00]} 46. b5 {[%clk 0:00:00]}  Kg7 {[%clk 0:00:00]} 47. b6 {[%clk 0:00:00]}  Rxb6 {[%clk 0:00:00]} 48. Rxa2 {[%clk 0:00:00]}  Rb3 {[%clk 0:00:00]} 49. Ra4 {[%clk 0:00:00]}  Rc3 {[%clk 0:00:00]} 50. Ra6 {[%clk 0:00:00]}  Rb3 {[%clk 0:00:00]} 51. Kf4 {[%clk 0:00:00]}  Rb2 {[%clk 0:00:00]} 52. f3 {[%clk 0:00:00]}  Rb4+ {[%clk 0:00:00]} 53. e4 {[%clk 0:00:00]}  Rb3 {[%clk 0:00:00]} 54. g4 {[%clk 0:00:00]}  hxg4 {[%clk 0:00:00]} 55. fxg4 {[%clk 0:00:00]}  Rc3 {[%clk 0:00:00]} 56. Ra4 {[%clk 0:00:00]}  Rc1 {[%clk 0:00:00]} 57. Rd4 {[%clk 0:00:00]}  Rf1+ {[%clk 0:00:00]} 58. Kg3 {[%clk 0:00:00]}  Rg1+ {[%clk 0:00:00]} 59. Kh3 {[%clk 0:00:00]}  Re1 {[%clk 0:00:00]} 60. Kg2 {[%clk 0:00:00]}  Rb1 {[%clk 0:00:00]} 61. Rd2 {[%clk 0:00:00]}  Rb3 {[%clk 0:00:00]} 62. Re2 {[%clk 0:00:00]}  Kf6 {[%clk 0:00:00]} 63. Rf2+ {[%clk 0:00:00]}  Kg7 {[%clk 0:00:00]} 64. Rf3 {[%clk 0:00:00]}  Rb4 {[%clk 0:00:00]} 65. Rf4 {[%clk 0:00:00]}  Rb3 {[%clk 0:00:00]} 66. e5 {[%clk 0:00:00]}  Re3 {[%clk 0:00:00]} 67. Rf3 {[%clk 0:00:00]}  Rxe5 {[%clk 0:00:00]} 68. Kg3 {[%clk 0:00:00]}  Re4 {[%clk 0:00:00]} 69. g5 {[%clk 0:00:00]}  Rd4 {[%clk 0:00:00]} 70. Rf4 {[%clk 0:00:00]}  Rd5 {[%clk 0:00:00]} 71. Rf3 {[%clk 0:00:00]}  Rc5 {[%clk 0:00:00]} 72. Rf4 {[%clk 0:00:00]}  Rb5 {[%clk 0:00:00]} 73. Rf3 {[%clk 0:00:00]}  Ra5 {[%clk 0:00:00]} 74. Rf4 {[%clk 0:00:00]}  Ra1 {[%clk 0:00:00]} 75. Rf3 {[%clk 0:00:00]}  Rg1+ {[%clk 0:00:00]} 76. Kh3 {[%clk 0:00:00]}  Rh1+ {[%clk 0:00:00]} 77. Kg3 {[%clk 0:00:00]}  Rc1 {[%clk 0:00:00]} 78. Kh3 {[%clk 0:00:00]}  Rc4 {[%clk 0:00:00]} 79. Kg3 {[%clk 0:00:00]}  Rb4 {[%clk 0:00:00]} 80. Kh3 {[%clk 0:00:00]}  Ra4 {[%clk 0:00:00]} 81. Kg3 {[%clk 0:00:00]}  Ra6 {[%clk 0:00:00]} 82. Kh3 {[%clk 0:00:00]}  f5 {[%clk 0:00:00]} 83. gxf6+ {[%clk 0:00:00]}  Rxf6 {[%clk 0:00:00]} 84. Rxf6 {[%clk 0:00:00]}  Kxf6 {[%clk 0:00:00]} 85. Kg4 {[%clk 0:00:00]}  Kg7 {[%clk 0:00:00]} 86. Kg5 {[%clk 0:00:00]}  Kh7 {[%clk 0:00:00]} 87. h5 {[%clk 0:00:00]}  gxh5 {[%clk 0:00:00]} 88. Kxh5 {[%clk 0:00:00]} 1/2-1/2


[Site "https://www.chess.com"]

[Event "Titled Tuesday Blitz August 16 Early 2022"]
[White "Pham, Le Thao Nguyen"]
[Black "Bharath Subramaniyam H"]
[WhiteFideId "12401226"]
[BlackFideId "46634827"]
[WhiteElo "2282"]
[BlackElo "2346"]
[Result "0-1"]
[Round "05"]
[TimeControl "180+2"]
[Date "2022.08.18"]
[WhiteClock "0:00:00"]
[BlackClock "0:00:00"]

1. d4 {[%clk 0:00:00]}  Nf6 {[%clk 0:00:00]} 2. Nf3 {[%clk 0:00:00]}  e6 {[%clk 0:00:00]} 3. Bg5 {[%clk 0:00:00]}  d5 {[%clk 0:00:00]} 4. e3 {[%clk 0:00:00]}  Be7 {[%clk 0:00:00]} 5. Nbd2 {[%clk 0:00:00]}  h6 {[%clk 0:00:00]} 6. Bh4 {[%clk 0:00:00]}  O-O {[%clk 0:00:00]} 7. Bd3 {[%clk 0:00:00]}  Nbd7 {[%clk 0:00:00]} 8. O-O {[%clk 0:00:00]}  c5 {[%clk 0:00:00]} 9. c3 {[%clk 0:00:00]}  b6 {[%clk 0:00:00]} 10. Ne5 {[%clk 0:00:00]}  Nxe5 {[%clk 0:00:00]} 11. dxe5 {[%clk 0:00:00]}  Nd7 {[%clk 0:00:00]} 12. Bxe7 {[%clk 0:00:00]}  Qxe7 {[%clk 0:00:00]} 13. f4 {[%clk 0:00:00]}  Bb7 {[%clk 0:00:00]} 14. Qh5 {[%clk 0:00:00]}  f5 {[%clk 0:00:00]} 15. exf6 {[%clk 0:00:00]}  Nxf6 {[%clk 0:00:00]} 16. Qg6 {[%clk 0:00:00]}  e5 {[%clk 0:00:00]} 17. fxe5 {[%clk 0:00:00]}  Qxe5 {[%clk 0:00:00]} 18. Rae1 {[%clk 0:00:00]}  Qg5 {[%clk 0:00:00]} 19. Qxg5 {[%clk 0:00:00]}  hxg5 {[%clk 0:00:00]} 20. Nf3 {[%clk 0:00:00]}  g4 {[%clk 0:00:00]} 21. Ng5 {[%clk 0:00:00]}  Rae8 {[%clk 0:00:00]} 22. Bf5 {[%clk 0:00:00]}  Bc8 {[%clk 0:00:00]} 23. Bxc8 {[%clk 0:00:00]}  Rxc8 {[%clk 0:00:00]} 24. e4 {[%clk 0:00:00]}  d4 {[%clk 0:00:00]} 25. cxd4 {[%clk 0:00:00]}  cxd4 {[%clk 0:00:00]} 26. e5 {[%clk 0:00:00]}  Nd7 {[%clk 0:00:00]} 27. Rxf8+ {[%clk 0:00:00]}  Rxf8 {[%clk 0:00:00]} 28. e6 {[%clk 0:00:00]}  Nf6 {[%clk 0:00:00]} 29. Rd1 {[%clk 0:00:00]}  Rd8 {[%clk 0:00:00]} 30. Rd3 {[%clk 0:00:00]}  Rd5 {[%clk 0:00:00]} 31. h4 {[%clk 0:00:00]}  Kf8 {[%clk 0:00:00]} 32. Kf2 {[%clk 0:00:00]}  Ke7 {[%clk 0:00:00]} 33. Kg3 {[%clk 0:00:00]}  Kd6 {[%clk 0:00:00]} 34. Kf4 {[%clk 0:00:00]}  g6 {[%clk 0:00:00]} 35. g3 {[%clk 0:00:00]}  Rf5# {[%clk 0:00:00]} 0-1


[Site "https://www.chess.com"]

[Event "Titled Tuesday Blitz August 16 Early 2022"]
[White "Pinheiro, Iung Alicio de O."]
[Black "Brozyna, Mateusz"]
[WhiteFideId "2104350"]
[BlackFideId "21816140"]
[WhiteElo "2283"]
[BlackElo "2030"]
[Result "1-0"]
[Round "05"]
[TimeControl "180+2"]
[Date "2022.08.18"]
[WhiteClock "0:00:00"]
[BlackClock "0:00:00"]

1. e4 {[%clk 0:00:00]}  e5 {[%clk 0:00:00]} 2. Bc4 {[%clk 0:00:00]}  Nf6 {[%clk 0:00:00]} 3. d3 {[%clk 0:00:00]}  c6 {[%clk 0:00:00]} 4. Nf3 {[%clk 0:00:00]}  Bd6 {[%clk 0:00:00]} 5. O-O {[%clk 0:00:00]}  Bc7 {[%clk 0:00:00]} 6. Bb3 {[%clk 0:00:00]}  h6 {[%clk 0:00:00]} 7. Nc3 {[%clk 0:00:00]}  O-O {[%clk 0:00:00]} 8. d4 {[%clk 0:00:00]}  d6 {[%clk 0:00:00]} 9. h3 {[%clk 0:00:00]}  a5 {[%clk 0:00:00]} 10. a3 {[%clk 0:00:00]}  Na6 {[%clk 0:00:00]} 11. Re1 {[%clk 0:00:00]}  Re8 {[%clk 0:00:00]} 12. Be3 {[%clk 0:00:00]}  Qe7 {[%clk 0:00:00]} 13. Qd2 {[%clk 0:00:00]}  Be6 {[%clk 0:00:00]} 14. d5 {[%clk 0:00:00]}  cxd5 {[%clk 0:00:00]} 15. Bxd5 {[%clk 0:00:00]}  Rab8 {[%clk 0:00:00]} 16. Ba7 {[%clk 0:00:00]}  Ra8 {[%clk 0:00:00]} 17. Be3 {[%clk 0:00:00]}  Rab8 {[%clk 0:00:00]} 18. Ba7 {[%clk 0:00:00]}  Ra8 {[%clk 0:00:00]} 19. Bxe6 {[%clk 0:00:00]}  Rxa7 {[%clk 0:00:00]} 20. Bc4 {[%clk 0:00:00]}  Bb6 {[%clk 0:00:00]} 21. Rad1 {[%clk 0:00:00]}  Rd8 {[%clk 0:00:00]} 22. Nh4 {[%clk 0:00:00]}  Nc7 {[%clk 0:00:00]} 23. Nf5 {[%clk 0:00:00]}  Qf8 {[%clk 0:00:00]} 24. Qd3 {[%clk 0:00:00]}  Ne6 {[%clk 0:00:00]} 25. Qg3 {[%clk 0:00:00]}  Kh7 {[%clk 0:00:00]} 26. Bd3 {[%clk 0:00:00]}  g6 {[%clk 0:00:00]} 27. Ne3 {[%clk 0:00:00]}  Kg7 {[%clk 0:00:00]} 28. Ned5 {[%clk 0:00:00]}  Nxd5 {[%clk 0:00:00]} 29. Nxd5 {[%clk 0:00:00]}  Bd4 {[%clk 0:00:00]} 30. c3 {[%clk 0:00:00]}  Bc5 {[%clk 0:00:00]} 31. b4 {[%clk 0:00:00]}  axb4 {[%clk 0:00:00]} 32. axb4 {[%clk 0:00:00]}  Ra2 {[%clk 0:00:00]} 33. bxc5 {[%clk 0:00:00]}  Nxc5 {[%clk 0:00:00]} 34. Bc4 {[%clk 0:00:00]}  Rb2 {[%clk 0:00:00]} 35. Qf3 {[%clk 0:00:00]}  b5 {[%clk 0:00:00]} 36. Qf6+ {[%clk 0:00:00]}  Kh7 {[%clk 0:00:00]} 37. Bf1 {[%clk 0:00:00]}  Qg7 {[%clk 0:00:00]} 38. Qxd8 {[%clk 0:00:00]}  Ne6 {[%clk 0:00:00]} 39. Qf6 {[%clk 0:00:00]} 1-0


[Site "https://www.chess.com"]

[Event "Titled Tuesday Blitz August 16 Early 2022"]
[White "Pourkashiyan, Atousa"]
[Black "Barria Zuniga, Daniel"]
[WhiteFideId "12502014"]
[BlackFideId "3400816"]
[WhiteElo "2247"]
[BlackElo "2414"]
[Result "1/2-1/2"]
[Round "05"]
[TimeControl "180+2"]
[Date "2022.08.18"]
[WhiteClock "0:00:00"]
[BlackClock "0:00:00"]

1. e4 {[%clk 0:00:00]}  g6 {[%clk 0:00:00]} 2. d4 {[%clk 0:00:00]}  Bg7 {[%clk 0:00:00]} 3. Nf3 {[%clk 0:00:00]}  c5 {[%clk 0:00:00]} 4. c3 {[%clk 0:00:00]}  cxd4 {[%clk 0:00:00]} 5. cxd4 {[%clk 0:00:00]}  d5 {[%clk 0:00:00]} 6. e5 {[%clk 0:00:00]}  Nh6 {[%clk 0:00:00]} 7. Nc3 {[%clk 0:00:00]}  O-O {[%clk 0:00:00]} 8. Bd3 {[%clk 0:00:00]}  Nc6 {[%clk 0:00:00]} 9. O-O {[%clk 0:00:00]}  Bg4 {[%clk 0:00:00]} 10. Be3 {[%clk 0:00:00]}  Nf5 {[%clk 0:00:00]} 11. Bxf5 {[%clk 0:00:00]}  Bxf5 {[%clk 0:00:00]} 12. Rc1 {[%clk 0:00:00]}  Qd7 {[%clk 0:00:00]} 13. h3 {[%clk 0:00:00]}  Rfd8 {[%clk 0:00:00]} 14. Qd2 {[%clk 0:00:00]}  Rac8 {[%clk 0:00:00]} 15. Bh6 {[%clk 0:00:00]}  f6 {[%clk 0:00:00]} 16. Bxg7 {[%clk 0:00:00]}  Kxg7 {[%clk 0:00:00]} 17. Rfe1 {[%clk 0:00:00]}  b6 {[%clk 0:00:00]} 18. Qf4 {[%clk 0:00:00]}  Be6 {[%clk 0:00:00]} 19. h4 {[%clk 0:00:00]}  Bg4 {[%clk 0:00:00]} 20. exf6+ {[%clk 0:00:00]}  exf6 {[%clk 0:00:00]} 21. Nxd5 {[%clk 0:00:00]}  Qxd5 {[%clk 0:00:00]} 22. Qxg4 {[%clk 0:00:00]}  h5 {[%clk 0:00:00]} 23. Qf4 {[%clk 0:00:00]}  Rd7 {[%clk 0:00:00]} 24. b3 {[%clk 0:00:00]}  Rcd8 {[%clk 0:00:00]} 25. Rcd1 {[%clk 0:00:00]}  Qf7 {[%clk 0:00:00]} 26. Re4 {[%clk 0:00:00]}  Nb4 {[%clk 0:00:00]} 27. Qe3 {[%clk 0:00:00]}  Nd5 {[%clk 0:00:00]} 28. Qe1 {[%clk 0:00:00]}  Rc8 {[%clk 0:00:00]} 29. Nd2 {[%clk 0:00:00]}  Rcc7 {[%clk 0:00:00]} 30. Rc1 {[%clk 0:00:00]}  Nc3 {[%clk 0:00:00]} 31. Re3 {[%clk 0:00:00]}  Nd5 {[%clk 0:00:00]} 32. Rxc7 {[%clk 0:00:00]}  Rxc7 {[%clk 0:00:00]} 33. Re8 {[%clk 0:00:00]}  b5 {[%clk 0:00:00]} 34. a4 {[%clk 0:00:00]}  a6 {[%clk 0:00:00]} 35. axb5 {[%clk 0:00:00]}  axb5 {[%clk 0:00:00]} 36. g3 {[%clk 0:00:00]}  Re7 {[%clk 0:00:00]} 37. Rxe7 {[%clk 0:00:00]}  Qxe7 {[%clk 0:00:00]} 38. Qxe7+ {[%clk 0:00:00]}  Nxe7 {[%clk 0:00:00]} 39. Ne4 {[%clk 0:00:00]}  Kf7 {[%clk 0:00:00]} 40. Nd6+ {[%clk 0:00:00]}  Ke6 {[%clk 0:00:00]} 41. Nxb5 {[%clk 0:00:00]}  Kd5 {[%clk 0:00:00]} 42. Kf1 {[%clk 0:00:00]}  Nf5 {[%clk 0:00:00]} 43. Ke2 {[%clk 0:00:00]}  Kc6 {[%clk 0:00:00]} 44. Na7+ {[%clk 0:00:00]}  Kb6 {[%clk 0:00:00]} 45. Nc8+ {[%clk 0:00:00]}  Kc7 {[%clk 0:00:00]} 46. Na7 {[%clk 0:00:00]}  Nxd4+ {[%clk 0:00:00]} 47. Ke3 {[%clk 0:00:00]}  Nxb3 {[%clk 0:00:00]} 48. Nb5+ {[%clk 0:00:00]}  Kd7 {[%clk 0:00:00]} 49. Nd4 {[%clk 0:00:00]}  Nxd4 {[%clk 0:00:00]} 50. Kxd4 {[%clk 0:00:00]}  Ke6 {[%clk 0:00:00]} 51. Ke4 {[%clk 0:00:00]}  Kd6 {[%clk 0:00:00]} 52. f4 {[%clk 0:00:00]}  Ke7 {[%clk 0:00:00]} 53. Kd5 {[%clk 0:00:00]}  Kd7 {[%clk 0:00:00]} 54. Kd4 {[%clk 0:00:00]}  Ke6 {[%clk 0:00:00]} 55. Ke4 {[%clk 0:00:00]}  f5+ {[%clk 0:00:00]} 56. Kd4 {[%clk 0:00:00]}  Kd6 {[%clk 0:00:00]} 57. Kc4 {[%clk 0:00:00]}  Kc6 {[%clk 0:00:00]} 58. Kd4 {[%clk 0:00:00]}  Kd6 {[%clk 0:00:00]} 59. Kc4 {[%clk 0:00:00]}  Kc6 {[%clk 0:00:00]} 60. Kd4 {[%clk 0:00:00]}  Kd6 {[%clk 0:00:00]} 1/2-1/2


[Site "https://www.chess.com"]

[Event "Titled Tuesday Blitz August 16 Early 2022"]
[White "Puranik, Abhimanyu"]
[Black "Taboas Rodriguez, Daniel"]
[WhiteFideId "5061245"]
[BlackFideId "2208466"]
[WhiteElo "2520"]
[BlackElo "2429"]
[Result "1-0"]
[Round "05"]
[TimeControl "180+1"]
[Date "2022.08.16"]
[WhiteClock "0:00:22"]
[BlackClock "0:00:04"]

1. e4 {[%clk 0:02:53]}  e5 {[%clk 0:02:59]} 2. Nf3 {[%clk 0:02:51]}  Nc6 {[%clk 0:03:00]} 3. Bb5 {[%clk 0:02:51]}  Nf6 {[%clk 0:03:00]} 4. d3 {[%clk 0:02:51]}  d6 {[%clk 0:03:00]} 5. c3 {[%clk 0:02:50]}  Bd7 {[%clk 0:02:59]} 6. Nbd2 {[%clk 0:02:50]}  g6 {[%clk 0:02:59]} 7. Nf1 {[%clk 0:02:50]}  Bg7 {[%clk 0:03:00]} 8. Bg5 {[%clk 0:02:50]}  O-O {[%clk 0:03:00]} 9. Ne3 {[%clk 0:02:49]}  h6 {[%clk 0:02:58]} 10. Bh4 {[%clk 0:02:49]}  Qe8 {[%clk 0:02:54]} 11. O-O {[%clk 0:02:44]}  Nh5 {[%clk 0:02:53]} 12. Nd5 {[%clk 0:02:43]}  Rc8 {[%clk 0:02:46]} 13. Bxc6 {[%clk 0:02:41]}  bxc6 {[%clk 0:02:42]} 14. Ne7+ {[%clk 0:02:41]}  Kh7 {[%clk 0:02:42]} 15. Nxc8 {[%clk 0:02:42]}  Bxc8 {[%clk 0:02:42]} 16. Re1 {[%clk 0:02:28]}  f5 {[%clk 0:02:42]} 17. exf5 {[%clk 0:02:28]}  gxf5 {[%clk 0:02:42]} 18. h3 {[%clk 0:02:16]}  Qg6 {[%clk 0:02:40]} 19. Nh2 {[%clk 0:02:10]}  Rg8 {[%clk 0:02:38]} 20. Qf3 {[%clk 0:02:04]}  Nf4 {[%clk 0:02:28]} 21. Bg3 {[%clk 0:02:03]}  Nh5 {[%clk 0:02:24]} 22. Nf1 {[%clk 0:01:46]}  Bb7 {[%clk 0:02:21]} 23. d4 {[%clk 0:01:42]}  e4 {[%clk 0:02:15]} 24. Qe3 {[%clk 0:01:41]}  Bf6 {[%clk 0:02:09]} 25. Kh2 {[%clk 0:01:32]}  f4 {[%clk 0:01:52]} 26. Qxe4 {[%clk 0:01:31]}  fxg3+ {[%clk 0:01:52]} 27. Nxg3 {[%clk 0:01:25]}  Nxg3 {[%clk 0:01:52]} 28. fxg3 {[%clk 0:01:24]}  Bc8 {[%clk 0:01:39]} 29. Qxg6+ {[%clk 0:01:22]}  Kxg6 {[%clk 0:01:40]} 30. Re3 {[%clk 0:01:20]}  h5 {[%clk 0:01:35]} 31. Rae1 {[%clk 0:01:19]}  Bd7 {[%clk 0:01:34]} 32. Rf1 {[%clk 0:01:14]}  Bd8 {[%clk 0:01:23]} 33. Re4 {[%clk 0:01:09]}  Bg5 {[%clk 0:01:12]} 34. b3 {[%clk 0:01:05]}  a5 {[%clk 0:01:10]} 35. Rf2 {[%clk 0:00:49]}  Bf5 {[%clk 0:01:10]} 36. Re1 {[%clk 0:00:49]}  Bd7 {[%clk 0:01:02]} 37. Rfe2 {[%clk 0:00:47]}  Kf7 {[%clk 0:00:54]} 38. Rf1+ {[%clk 0:00:47]}  Kg6 {[%clk 0:00:53]} 39. Rd1 {[%clk 0:00:46]}  Kf7 {[%clk 0:00:47]} 40. d5 {[%clk 0:00:46]}  c5 {[%clk 0:00:46]} 41. Rf1+ {[%clk 0:00:44]}  Kg6 {[%clk 0:00:46]} 42. Re4 {[%clk 0:00:44]}  Re8 {[%clk 0:00:40]} 43. Rxe8 {[%clk 0:00:42]}  Bxe8 {[%clk 0:00:41]} 44. Rf8 {[%clk 0:00:43]}  Bf7 {[%clk 0:00:29]} 45. c4 {[%clk 0:00:42]}  Bd2 {[%clk 0:00:29]} 46. Rc8 {[%clk 0:00:41]}  Bb4 {[%clk 0:00:29]} 47. Rxc7 {[%clk 0:00:41]}  Bc3 {[%clk 0:00:21]} 48. Rc6 {[%clk 0:00:38]}  Be5 {[%clk 0:00:21]} 49. Ra6 {[%clk 0:00:38]}  h4 {[%clk 0:00:21]} 50. Rxa5 {[%clk 0:00:34]}  hxg3+ {[%clk 0:00:18]} 51. Kg1 {[%clk 0:00:33]}  Kf5 {[%clk 0:00:18]} 52. Ra8 {[%clk 0:00:31]}  Ke4 {[%clk 0:00:18]} 53. a4 {[%clk 0:00:31]}  Bg6 {[%clk 0:00:14]} 54. a5 {[%clk 0:00:30]}  Bf5 {[%clk 0:00:13]} 55. a6 {[%clk 0:00:28]}  Bd4+ {[%clk 0:00:13]} 56. Kh1 {[%clk 0:00:23]}  Ke3 {[%clk 0:00:04]} 57. Re8+ {[%clk 0:00:23]}  Kf2 {[%clk 0:00:04]} 58. Rf8 {[%clk 0:00:22]} 1-0


[Site "https://www.chess.com"]